Workbook

Sheet паспорт
A1: ПАТ "УКРТРАНСГАЗ" | G1: ПАСПОРТ ФІЗИКО-ХІМІЧНИХ ПОКАЗНИКІВ ПРИРОДНОГО ГАЗУ № 651
A2: Філія "УМГ "ХАРКІВТРАНСГАЗ" | G2: переданого Сєвєродонецьким ЛВУМГ та прийнятого ПАТ "Луганськгаз"
A3: Сєвєродонецьке ЛВУМГ | G3: Маршрут № 651
A4: Вимірювальна хіміко-аналітична лабораторія
A5: Свідоцтво № РЬ089/2014 чинно до 06.06.2017 р. | K5: по газопроводу "Новопсков-Краматорськ" | V5: за період з | X5: 01.02.2017 р. | Z5: по | AA5: 28.02.2017 р.
A7: Число місяця | B7: Компонентний склад, мол. % | N7: Фізико-хімічні показники газу обчислені на основі компонентного складу, 101,325 кПа | X7: Температура точки роси за вологою (Р = 3.92 МПа), °С | Y7: Температура точки роси за вуглеводнями, °С | Z7: Вміст сірководню, г/м3 | AA7: Вміст меркаптанової сірки, г/м3 | AB7: Вміст механічних домішок, г/м3
N8: Густина абсолютна, кг/м3,при 20 °С, | O8: Температура вимірювання/згоряння при 20/25°С
B9: метан, С1 | C9: етан, С2 | D9: пропан, С3 | E9: ізо-бутан, і-С4 | F9: н-бутан, н-С4 | G9: нео-пентан, нео-С5 | H9: ізо-пентан, і-С5 | I9: н-пентан, н-С5 | J9: гексани та вищі, С6+ | K9: кисень, О2 | L9: азот, N2 | M9: діоксид вуглецю, CО2 | O9: Теплота згоряння нижча | R9: Теплота згоряння вища | U9: Число Воббе вище
O10: ккал/м³ | P10: МДж/м³ | Q10: кВт⋅год/м³ | R10: ккал/м³ | S10: МДж/м³ | T10: кВт⋅год/м³ | U10: ккал/м³ | V10: МДж/м³ | W10: кВт⋅год/м³
A11: 1 | O11: =P11*238.8459 -> 8150.258069 | P11: 34.1235 | Q11: =P11/3.6 -> 9.47875 | R11: =S11*238.8459 -> 9029.784211 | S11: 37.8059 | T11: =S11/3.6 -> 10.50163889 | U11: =V11/0.0041868 -> 11700.34394 | V11: 48.987 | W11: =V11/3.6 -> 13.6075 | AC11: =SUM(B11:M11)+$K$42+$N$42 -> 0
A12: 2 | O12: =P12*238.8459 -> 8150.258069 | P12: 34.1235 | Q12: =P12/3.6 -> 9.47875 | R12: =S12*238.8459 -> 9029.784211 | S12: 37.8059 | T12: =S12/3.6 -> 10.50163889 | U12: =V12/0.0041868 -> 11700.34394 | V12: 48.987 | W12: =V12/3.6 -> 13.6075 | AC12: 0
A13: 3 | B13: 93.0146 | C13: 3.5043 | D13: 0.8521 | E13: 0.0827 | F13: 0.105 | G13: 0.0058 | H13: 0.019 | I13: 0.0164 | J13: 0.0367 | K13: 0.0103 | L13: 2.1411 | M13: 0.212 | N13: 0.7173 | O13: =P13*238.8459 -> 8176.507233 | P13: 34.2334 | Q13: =P13/3.6 -> 9.509277778 | R13: =S13*238.8459 -> 9058.493488 | S13: 37.9261 | T13: =S13/3.6 -> 10.53502778 | U13: =V13/0.0041868 -> 11738.12936 | V13: 49.1452 | W13: =V13/3.6 -> 13.65144444 | X13: -12.4 | Y13: -15.8 | Z13: 0.0002 | AA13: 0.006 | AB13: відс | AC13: 100 | AD13: =IF(AC13=100,"ОК"," ") -> ОК
A14: 4 | O14: =P14*238.8459 -> 8176.507233 | P14: 34.2334 | Q14: =P14/3.6 -> 9.509277778 | R14: =S14*238.8459 -> 9058.493488 | S14: 37.9261 | T14: =S14/3.6 -> 10.53502778 | U14: =V14/0.0041868 -> 11738.12936 | V14: 49.1452 | W14: =V14/3.6 -> 13.65144444 | AC14: 0 | AD14: =IF(AC14=100,"ОК"," ") -> 
A15: 5 | O15: 8176.507233 | P15: 34.2334 | Q15: 9.509277778 | R15: 9058.493488 | S15: 37.9261 | T15: 10.53502778 | U15: 11738.12936 | V15: 49.1452 | W15: 13.65144444 | AC15: 0
A16: 6 | O16: 8176.507233 | P16: 34.2334 | Q16: 9.509277778 | R16: 9058.493488 | S16: 37.9261 | T16: 10.53502778 | U16: 11738.12936 | V16: 49.1452 | W16: 13.65144444 | AC16: 0
A17: 7 | O17: 8176.507233 | P17: 34.2334 | Q17: 9.509277778 | R17: 9058.493488 | S17: 37.9261 | T17: 10.53502778 | U17: 11738.12936 | V17: 49.1452 | W17: 13.65144444 | AC17: 0
A18: 8 | O18: 8176.507233 | P18: 34.2334 | Q18: 9.509277778 | R18: 9058.493488 | S18: 37.9261 | T18: 10.53502778 | U18: 11738.12936 | V18: 49.1452 | W18: 13.65144444 | AC18: 0
A19: 9 | O19: 8176.507233 | P19: 34.2334 | Q19: 9.509277778 | R19: 9058.493488 | S19: 37.9261 | T19: 10.53502778 | U19: 11738.12936 | V19: 49.1452 | W19: 13.65144444 | AC19: 0
A20: 10 | O20: 8176.507233 | P20: 34.2334 | Q20: 9.509277778 | R20: 9058.493488 | S20: 37.9261 | T20: 10.53502778 | U20: 11738.12936 | V20: 49.1452 | W20: 13.65144444 | AC20: 0
A21: 11 | O21: 8176.507233 | P21: 34.2334 | Q21: 9.509277778 | R21: 9058.493488 | S21: 37.9261 | T21: 10.53502778 | U21: 11738.12936 | V21: 49.1452 | W21: 13.65144444 | AC21: 0
A22: 12 | O22: 8176.507233 | P22: 34.2334 | Q22: 9.509277778 | R22: 9058.493488 | S22: 37.9261 | T22: 10.53502778 | U22: 11738.12936 | V22: 49.1452 | W22: 13.65144444 | AC22: 0
A23: 13 | O23: 8176.507233 | P23: 34.2334 | Q23: 9.509277778 | R23: 9058.493488 | S23: 37.9261 | T23: 10.53502778 | U23: 11738.12936 | V23: 49.1452 | W23: 13.65144444 | AC23: 0
A24: 14 | O24: 8176.507233 | P24: 34.2334 | Q24: 9.509277778 | R24: 9058.493488 | S24: 37.9261 | T24: 10.53502778 | U24: 11738.12936 | V24: 49.1452 | W24: 13.65144444 | AC24: 0
A25: 15 | B25: 94.2285 | C25: 2.5221 | D25: 0.6422 | E25: 0.071 | F25: 0.0987 | G25: 0.0034 | H25: 0.0221 | I25: 0.0193 | J25: 0.0325 | K25: 0.0133 | L25: 2.1293 | M25: 0.2176 | N25: 0.7087 | O25: =P25*238.8459 -> 8085.435291 | P25: 33.8521 | Q25: =P25/3.6 -> 9.403361111 | R25: =S25*238.8459 -> 8960.996592 | S25: 37.5179 | T25: =S25/3.6 -> 10.42163889 | U25: =V25/0.0041868 -> 11681.73784 | V25: 48.9091 | W25: =V25/3.6 -> 13.58586111 | AC25: 100 | AD25: ОК
A26: 16 | O26: =P26*238.8459 -> 8085.435291 | P26: 33.8521 | Q26: =P26/3.6 -> 9.403361111 | R26: =S26*238.8459 -> 8960.996592 | S26: 37.5179 | T26: =S26/3.6 -> 10.42163889 | U26: =V26/0.0041868 -> 11681.73784 | V26: 48.9091 | W26: =V26/3.6 -> 13.58586111 | AC26: 0
A27: 17 | O27: 8085.435291 | P27: 33.8521 | Q27: 9.403361111 | R27: 8960.996592 | S27: 37.5179 | T27: 10.42163889 | U27: 11681.73784 | V27: 48.9091 | W27: 13.58586111 | AC27: 0
A28: 18 | O28: 8085.435291 | P28: 33.8521 | Q28: 9.403361111 | R28: 8960.996592 | S28: 37.5179 | T28: 10.42163889 | U28: 11681.73784 | V28: 48.9091 | W28: 13.58586111 | AC28: 0
A29: 19 | O29: 8085.435291 | P29: 33.8521 | Q29: 9.403361111 | R29: 8960.996592 | S29: 37.5179 | T29: 10.42163889 | U29: 11681.73784 | V29: 48.9091 | W29: 13.58586111 | AC29: 0
A30: 20 | O30: 8085.435291 | P30: 33.8521 | Q30: 9.403361111 | R30: 8960.996592 | S30: 37.5179 | T30: 10.42163889 | U30: 11681.73784 | V30: 48.9091 | W30: 13.58586111 | AC30: 0 | AD30: =IF(AC30=100,"ОК"," ") -> 
A31: 21 | O31: 8085.435291 | P31: 33.8521 | Q31: 9.403361111 | R31: 8960.996592 | S31: 37.5179 | T31: 10.42163889 | U31: 11681.73784 | V31: 48.9091 | W31: 13.58586111 | AC31: 0
A32: 22 | O32: 8085.435291 | P32: 33.8521 | Q32: 9.403361111 | R32: 8960.996592 | S32: 37.5179 | T32: 10.42163889 | U32: 11681.73784 | V32: 48.9091 | W32: 13.58586111 | AC32: 0
A33: 23 | O33: 8085.435291 | P33: 33.8521 | Q33: 9.403361111 | R33: 8960.996592 | S33: 37.5179 | T33: 10.42163889 | U33: 11681.73784 | V33: 48.9091 | W33: 13.58586111 | AC33: 0 | AD33: =IF(AC33=100,"ОК"," ") -> 
A34: 24 | O34: 8085.435291 | P34: 33.8521 | Q34: 9.403361111 | R34: 8960.996592 | S34: 37.5179 | T34: 10.42163889 | U34: 11681.73784 | V34: 48.9091 | W34: 13.58586111 | AC34: 0
A35: 25 | O35: 8085.435291 | P35: 33.8521 | Q35: 9.403361111 | R35: 8960.996592 | S35: 37.5179 | T35: 10.42163889 | U35: 11681.73784 | V35: 48.9091 | W35: 13.58586111 | AC35: 0
A36: 26 | O36: 8085.435291 | P36: 33.8521 | Q36: 9.403361111 | R36: 8960.996592 | S36: 37.5179 | T36: 10.42163889 | U36: 11681.73784 | V36: 48.9091 | W36: 13.58586111 | AC36: 0
A37: 27 | O37: 8085.435291 | P37: 33.8521 | Q37: 9.403361111 | R37: 8960.996592 | S37: 37.5179 | T37: 10.42163889 | U37: 11681.73784 | V37: 48.9091 | W37: 13.58586111 | AC37: 0
A38: 28 | O38: 8085.435291 | P38: 33.8521 | Q38: 9.403361111 | R38: 8960.996592 | S38: 37.5179 | T38: 10.42163889 | U38: 11681.73784 | V38: 48.9091 | W38: 13.58586111 | AC38: 0
A39: 29 | AC39: 0
A40: 30 | AC40: 0
A41: 31 | AC41: 0
A42: Рівень одоризації відповідає чинним нормативним документам | O42: =SUMPRODUCT(O11:O41,' розрахунок'!H7:H37)/' розрахунок'!H38 -> 8134.489207 | P42: =SUMPRODUCT(P11:P41,' розрахунок'!H7:H37)/' розрахунок'!H38 -> 34.05747893 | Q42: =SUMPRODUCT(Q11:Q41,' розрахунок'!H7:H37)/' розрахунок'!H38 -> 9.460410814 | R42: =SUMPRODUCT(R11:R41,' розрахунок'!H7:H37)/' розрахунок'!H38 -> 9013.460047 | S42: =SUMPRODUCT(S11:S41,' розрахунок'!H7:H37)/' розрахунок'!H38 -> 37.73755399 | T42: =SUMPRODUCT(T11:T41,' розрахунок'!H7:H37)/' розрахунок'!H38 -> 10.48265389
H43: Середньозважене значення теплоти згоряння:
B46: Начальник управління Сєвєродонецького ЛВУМГ Головко Ю.О.
C47: Підрозділу підприємства, якому підпорядкована лабораторія | O47: прізвище | R47: підпис | V47: дата
B48: Інженер ІІ кат.вимірювальної хіміко-аналітичної лабораторії Єрьоменко М.О.
C49: Лабораторія, де здійснювалось вимірювання газу | O49: прізвище | R49: підпис | V49: дата
B50: Начальник служби метрології Ісаєв В.С.
C51: Підрозділу, відповідального за облік газу за маршрутом | O51: прізвище | R51: підпис | V51: дата

Sheet розрахунок (hidden)
A2: Додаток до Паспорту фізико-хімічних показників природного газу по маршруту № 651
A4: Число місяця | B4: Теплота згоряння вища, МДж/м3 | C4: Луганська область | H4: Загальний обсяг газу, м3
C5: Обсяг газу переданого за добу, м3
C6: ГРС с.Смолянинове | D6: ГРС с. Федчине | E6: ГРС с.Чабанівка | F6: ГРС смт. Підгорівка | G6: ГРС с.Новоастрахань
A7: 1 | B7: 37.8059 | C7: 12400.16 | D7: 24446.75 | E7: 2500.97 | F7: 55065.73 | G7: 17002.81 | H7: =SUM(C7:G7) -> 111416.42
A8: 2 | B8: 37.8059 | C8: 11701.68 | D8: 22596.87 | E8: 2376.2 | F8: 51435.17 | G8: 16027.57 | H8: 104137.49
A9: 3 | B9: 37.9261 | C9: 11548.79 | D9: 23129.93 | E9: 2353.2 | F9: 51793.16 | G9: 15557.87 | H9: 104382.95
A10: 4 | B10: 37.9261 | C10: 10291.82 | D10: 20411.38 | E10: 2106.81 | F10: 45159.8 | G10: 14153.17 | H10: 92122.98
A11: 5 | B11: 37.9261 | C11: 9718.94 | D11: 19060.93 | E11: 1981.18 | F11: 44097.57 | G11: 13501.55 | H11: 88360.17
A12: 6 | B12: 37.9261 | C12: 10894.23 | D12: 21724.4 | E12: 2186.45 | F12: 48964.5 | G12: 15005.42 | H12: 98775
A13: 7 | B13: 37.9261 | C13: 12469.11 | D13: 24968.78 | E13: 2455.58 | F13: 55047.71 | G13: 16534.52 | H13: 111475.7
A14: 8 | B14: 37.9261 | C14: 13254.9 | D14: 26732.22 | E14: 2655.9 | F14: 58566.31 | G14: 17420.42 | H14: 118629.75
A15: 9 | B15: 37.9261 | C15: 13007.44 | D15: 26003.34 | E15: 2638.69 | F15: 57415.32 | G15: 17092.56 | H15: 116157.35
A16: 10 | B16: 37.9261 | C16: 12202.02 | D16: 23770.29 | E16: 2482.39 | F16: 52813.21 | G16: 16007.13 | H16: 107275.04
A17: 11 | B17: 37.9261 | C17: 11613.1 | D17: 21577.18 | E17: 2351.56 | F17: 49254.31 | G17: 15304.77 | H17: 100100.92
A18: 12 | B18: 37.9261 | C18: 11229.18 | D18: 22092.59 | E18: 2461.87 | F18: 50011.16 | G18: 15121.58 | H18: 100916.38
A19: 13 | B19: 37.9261 | C19: 10723.25 | D19: 20498.61 | E19: 2159.08 | F19: 46682.38 | G19: 14335.95 | H19: 94399.27
A20: 14 | B20: 37.9261 | C20: 10765.74 | D20: 20866.6 | E20: 2235.48 | F20: 47260.7 | G20: 14345.96 | H20: 95474.48
A21: 15 | B21: 37.5179 | C21: 10296.67 | D21: 20016.43 | E21: 2202.66 | F21: 45493.09 | G21: 13940.81 | H21: 91949.66
A22: 16 | B22: 37.5179 | C22: 10981.49 | D22: 21357.08 | E22: 2318.6 | F22: 47601.26 | G22: 14640.8 | H22: 96899.23
A23: 17 | B23: 37.5179 | C23: 11036.49 | D23: 21924.69 | E23: 2282.32 | F23: 49338.16 | G23: 14743.68 | H23: 99325.34
A24: 18 | B24: 37.5179 | C24: 9831.05 | D24: 19048.36 | E24: 2187.46 | F24: 43439.54 | G24: 13241.04 | H24: 87747.45
A25: 19 | B25: 37.5179 | C25: 9099.17 | D25: 17515.13 | E25: 1894.51 | F25: 39878.21 | G25: 12337.65 | H25: 80724.67
A26: 20 | B26: 37.5179 | C26: 8660.8 | D26: 15821.96 | E26: 1727.79 | F26: 37011.25 | G26: 11438.89 | H26: 74660.69
A27: 21 | B27: 37.5179 | C27: 8415.28 | D27: 15565.39 | E27: 1642.92 | F27: 35822.28 | G27: 11137.35 | H27: 72583.22
A28: 22 | B28: 37.5179 | C28: 8397.33 | D28: 15707.04 | E28: 1682.46 | F28: 36079.77 | G28: 11205.55 | H28: 73072.15
A29: 23 | B29: 37.5179 | C29: 8604.71 | D29: 16484.06 | E29: 1783.55 | F29: 37461.79 | G29: 11566.21 | H29: 75900.32
A30: 24 | B30: 37.5179 | C30: 7917.01 | D30: 14909.05 | E30: 1684.42 | F30: 34100.87 | G30: 10744.89 | H30: 69356.24
A31: 25 | B31: 37.5179 | C31: 8385.22 | D31: 15947.22 | E31: 1640.44 | F31: 35870.43 | G31: 11071.58 | H31: 72914.89
A32: 26 | B32: 37.5179 | C32: 8926.1 | D32: 17090.52 | E32: 1732.22 | F32: 38595.18 | G32: 11705.56 | H32: 78049.58
A33: 27 | B33: 37.5179 | C33: 8881.15 | D33: 16644.42 | E33: 1761.73 | F33: 37829.16 | G33: 11593.14 | H33: 76709.6
A34: 28 | B34: 37.5179 | C34: 8265.31 | D34: 15359.81 | E34: 1657.6 | F34: 35209.72 | G34: 10832.2 | H34: 71324.64
A35: 29
A36: 30
A37: 31
A38: Загальний обсяг газу, м3 | C38: =SUM(C7:C37) -> 289518.14 | D38: 561271.03 | E38: 59144.04 | F38: 1267297.74 | G38: 387610.63 | H38: 2564841.58
A39: Енергія, МДж | C39: =SUMPRODUCT(B7:B37,C7:C37) -> 10925270.65 | D39: =SUMPRODUCT(B7:B37,D7:D37) -> 21181814.3 | E39: =SUMPRODUCT(B7:B37,E7:E37) -> 2231822.238 | F39: =SUMPRODUCT(B7:B37,F7:F37) -> 47824826.53 | G39: =SUMPRODUCT(B7:B37,G7:G37) -> 14627113.89 | H39: =SUMPRODUCT(B7:B37,H7:H37) -> 96790847.61
A40: Теплота згоряння (середньозважене значення за місяць), МДж/м³ | C40: =C39/C38 -> 37.73604878 | D40: 37.73901228 | E40: 37.7353701 | F40: 37.73764051 | G40: 37.736617 | H40: 37.73755399
A41: Теплота згоряння (середньозважене значення за місяць), ккал/м³ | C41: =C40*238.8459 -> 9013.100534 | D41: 9013.808354 | E41: 9012.938433 | F41: 9013.480712 | G41: 9013.236249 | H41: 9013.460047
A42: Теплота згоряння (середньозважене значення за місяць), кВт*год./м³ | C42: =C40/3.6 -> 10.48223577 | D42: 10.48305897 | E42: 10.48204725 | F42: 10.48267792 | G42: 10.48239361 | H42: 10.48265389

Sheet додаток
A2: Додаток до Паспорту фізико-хімічних показників природного газу №651
A4: Область | B4: ГРС, прямий споживач | C4: Cередньозважене значення вищої теплоти згоряння
C5: МДж/м³ | D5: ккал/м³ | E5: кВт*год./м³
A6: Луганська область | B6: ГРС с.Смолянинове | C6: 37.74 | D6: 9013 | E6: 10.48
B7: ГРС с. Федчине | C7: 37.74 | D7: 9014 | E7: 10.48
B8: ГРС с.Чабанівка | C8: 37.74 | D8: 9013 | E8: 10.48
B9: ГРС смт. Підгорівка | C9: 37.74 | D9: 9013 | E9: 10.48
B10: ГРС с.Новоастрахань | C10: 37.74 | D10: 9013 | E10: 10.48
A11: Середньозважене значення вищої теплоти згоряння по маршруту №651 | C11: 37.74 | D11: 9013 | E11: 10.48
A15: Начальник управління Сєвєродонецького ЛВУМГ Головко Ю.О.
A16: Підрозділу підприємства, якому підпорядкована лабораторія | D16: прізвище | E16: підпис | F16: дата
A17: Інженер ІІ кат.вимірювальної хіміко-аналітичної лабораторії Єрьоменко М.О.
A18: Лабораторія, де здійснювалось вимірювання газу | D18: прізвище | E18: підпис | F18: дата
A19: Начальник служби метрології Ісаєв В.С.
A20: Підрозділу, відповідального за облік газу за маршрутом | D20: прізвище | E20: підпис | F20: дата
F24: дата
F26: дата
F28: дата

Sheet variablesList (hidden)
A1: 3 | B1: x:\gaysin | C1: 10, 11, 24, 25, 127, 128, 132, 180, 207, 215 | D1: x:\
B2: x:\Illinci
B3: x:\Talne
